[Event "45th FIDE Womens Olympiad 2024"]
[Site "Budapest"]
[Date "2024.09.12"]
[Round "2.251"]
[White "Ben Amor, Meriem"]
[Black "Aishath Iva Hassan"]
[Result "0-1"]
[ECO "B12"]
[WhiteElo "1733"]
[BlackElo "1422"]
[Annotator "NA"]
[PlyCount "68"]
[EventDate "2024.09.05"]
[EventType "team-tourn"]
[EventCountry "HUN"]
[SourceTitle "playchess.com"]
[Source "ChessBase"]
[SourceQuality "1"]
[WhiteTeam "Tunisia"]
[BlackTeam "Maldives"]
[WhiteTeamCountry "TUN"]
[BlackTeamCountry "MDV"]
[TimeControl "40/5400+30:1800+30"]

1. e4 c6 2. d4 d5 3. f3 e5 4. dxe5 Bc5 5. Ne2 Ne7 6. Nf4 Ng6 7. Nxg6 hxg6 8. exd5 cxd5 9. Nc3 Be6 10. Na4 Qh4+ 11. g3 Qxa4 12. Qe2 Qc4 13. Qd2 Qd4 14. Bb5+ Nc6 15. Qe2 O-O 16. Bxc6 bxc6 17. h4 Rfe8 18. Rb1 Bf5 19. Bf4 Re6 20. Qh2 Rae8 21. g4 Rxe5+ 22. Bxe5 Rxe5+ 23. Kf1 Qc4+ 24. Kg2 Re2+ 25. Kh3 Rxh2+ 26. Rxh2 Qf4 27. Kg2 Bxc2 28. Rbh1 Bd3 29. h5 g5 30. h6 g6 31. h7+ Kh8 32. Ra1 Be2 33. Rh3 Qe3 34. a4 Qf2+ 0-1

[Event "45th FIDE Womens Olympiad 2024"]
[Site "Budapest"]
[Date "2024.09.12"]
[Round "2.252"]
[White "Aini Munthazim"]
[Black "Gamha, Yasmine"]
[Result "0-1"]
[ECO "B23"]
[WhiteElo "1536"]
[BlackElo "1679"]
[Annotator "NA"]
[PlyCount "60"]
[EventDate "2024.09.05"]
[EventType "team-tourn"]
[EventCountry "HUN"]
[SourceTitle "playchess.com"]
[Source "ChessBase"]
[SourceQuality "1"]
[WhiteTeam "Maldives"]
[BlackTeam "Tunisia"]
[WhiteTeamCountry "MDV"]
[BlackTeamCountry "TUN"]
[TimeControl "40/5400+30:1800+30"]

1. e4 c5 2. Nc3 Nc6 3. f4 g6 4. Nf3 Bg7 5. Bc4 e6 6. d3 Nge7 7. Be3 d5 8. exd5 exd5 9. Nxd5 Nxd5 10. Bxd5 Qxd5 11. c3 Bf5 12. d4 cxd4 13. cxd4 O-O 14. h4 Nb4 15. Kf2 Nc2 16. Rc1 Nxe3 17. Kxe3 Qe4+ 18. Kf2 Qxf4 19. d5 Bxb2 20. Rc5 Qb4 21. Rc7 Qb6+ 22. Kf1 Qxc7 23. h5 Qc1 24. Qxc1 Bxc1 25. Kf2 Ba3 26. Ng5 Be7 27. Nf3 Be4 28. Re1 Bc5+ 29. Kg3 Bxd5 30. Re5 Bd6 0-1

[Event "45th FIDE Womens Olympiad 2024"]
[Site "Budapest"]
[Date "2024.09.12"]
[Round "2.254"]
[White "Blackman, Katrina"]
[Black "Wahid, Chelsea"]
[Result "1-0"]
[ECO "C01"]
[WhiteElo "1814"]
[BlackElo "1482"]
[Annotator "NA"]
[PlyCount "55"]
[EventDate "2024.09.05"]
[EventType "team-tourn"]
[EventCountry "HUN"]
[SourceTitle "playchess.com"]
[Source "ChessBase"]
[SourceQuality "1"]
[WhiteTeam "Barbados"]
[BlackTeam "Saint Lucia"]
[WhiteTeamCountry "BAR"]
[TimeControl "40/5400+30:1800+30"]

1. e3 e5 2. d4 exd4 3. exd4 d5 4. Nf3 Bd6 5. Bd3 Nf6 6. Bg5 h6 7. Bh4 O-O 8. O-O Nc6 9. c3 Re8 10. Nbd2 Be6 11. Re1 Be7 12. Qc2 Qd6 13. Bg3 Qd7 14. Ne5 Nxe5 15. Bxe5 Ng4 16. Nf3 Bd6 17. h3 Nxe5 18. Nxe5 Bxe5 19. Rxe5 Bxh3 20. gxh3 Qxh3 21. Bf5 Qh4 22. Rae1 Rxe5 23. Rxe5 Qg5+ 24. Kf1 g6 25. Be6 Qh4 26. Bxd5 Qh3+ 27. Bg2 Qg4 28. Re3 1-0